Workbook

Sheet II. Размер средств
A1: II. РАЗМЕР СРЕДСТВ, НАПРАВЛЕННЫХ НА КАПИТАЛЬНЫЙ РЕМОНТ ОБЩЕГО ИМУЩЕСТВА В МНОГОКВАРТИРНОМ ДОМЕ
A3: N п/п | B3: Адрес МКД | C3: Тип работ | D3: Виды работ и услуг по капитальному ремонту общего имущества в многоквартирном доме | E3: Стоимость работ и услуг по капитальному ремонту | F3: Размер средств, направленных на капитальный ремонт | N3: Размер предоставленной рассрочки оплаты услуги работ по капитальному ремонту | O3: Оплата работ и услуг в отчетном периоде
F4: Всего | G4: фонда капитального ремонта, сформированного исходя из минимального размера взноса | H4: фонда капитального ремонта, сверх сформированного исходя из минимального размера взноса | I4: государственной, муниципальной поддержки | J4: процентов от размещения временно свободных средств фондов капитального ремонта в кредитных организациях | K4: средства фондов капитального ремонта других домов | L4: Кредит <*> | M4: Заем <**> | O4: задолженность на начало периода | P4: сумма произведенных оплат в отчетном периоде | Q4: задолженность оплате капитального ремонта на конец отчетного периода
B5: 1 | D5: 2 | E5: 3 | F5: 4 | G5: 5 | H5: 6 | I5: 7 | J5: 8 | K5: 9 | L5: 10 | M5: 11 | N5: 12 | O5: 13 | P5: 14 | Q5: 15
A6: 1 | B6: г. Андреаполь, Авиаторов ул., д. 14 | C6: СМР | D6: 2. Ремонт крыши | E6: 848 028 | F6: 848 028 | G6: 848 028 | I6: 0.00
A7: 2 | B7: г. Андреаполь, Авиаторов ул., д. 14 | C7: ПСД | D7: 2. Ремонт крыши | E7: 68 061.84 | F7: 68 061.84 | G7: 68 061.84 | I7: 0.00
A8: 3 | B8: г. Андреаполь, Авиаторов ул., д. 14 | C8: СК | D8: 2. Ремонт крыши | E8: 18 206.54 | F8: 18 206.54 | G8: 18 206.54 | I8: 0.00
A9: 4 | B9: г. Андреаполь, Авиаторов ул., д. 9 | C9: ПСД | D9: 2. Ремонт крыши | E9: 16 205.2 | F9: 16 205.2 | G9: 16 205.2 | I9: 0.00
A10: 5 | B10: г. Андреаполь, Авиаторов ул., д. 9 | C10: СМР | D10: 2. Ремонт крыши | E10: 202 565 | F10: 202 565 | G10: 202 565 | I10: 0.00
A11: 6 | B11: г. Андреаполь, Авиаторов ул., д. 9 | C11: СК | D11: 2. Ремонт крыши | E11: 4 334.89 | F11: 4 334.89 | G11: 4 334.89 | I11: 0.00
A12: 7 | B12: г. Андреаполь, Гагарина ул., д. 17 | C12: ПСД | D12: 2. Ремонт крыши | E12: 132 934.31 | F12: 32 810.13 | G12: 32 810.13 | I12: 0.00
A13: 8 | B13: г. Андреаполь, Гагарина ул., д. 17 | C13: ПСД | D13: 4. Ремонт фасада | E13: 83 966.18 | F13: 39 107.1 | G13: 39 107.1 | I13: 0.00
A14: 9 | B14: г. Андреаполь, Гагарина ул., д. 17 | C14: СМР | D14: 4. Ремонт фасада | E14: 1 334 115 | F14: 410 360.4 | G14: 410 360.4 | I14: 0.00
A15: 10 | B15: г. Андреаполь, Гагарина ул., д. 17 | C15: СК | D15: 4. Ремонт фасада | E15: 28 550.06 | F15: 10 461.15 | G15: 10 461.15 | I15: 0.00
A16: 11 | B16: г. Андреаполь, Гагарина ул., д. 17 | C16: СК | D16: 2. Ремонт крыши | E16: 35 559.93 | I16: 0.00
A17: 12 | B17: г. Андреаполь, Гагарина ул., д. 17 | C17: СМР | D17: 2. Ремонт крыши | E17: 1 661 678.93 | F17: 756 101.81 | G17: 756 101.81 | I17: 0.00 | P17: 756 101.81 | S17: =E17-P17 -> 905577.12
A18: 13 | B18: г. Андреаполь, Гагарина ул., д. 6 | C18: СК | D18: 2. Ремонт крыши | E18: 35 589.87 | F18: 22 085.88 | G18: 22 085.88 | I18: 0.00
A19: 14 | B19: г. Андреаполь, Гагарина ул., д. 6 | C19: СМР | D19: 2. Ремонт крыши | E19: 1 663 077.83 | F19: 1 199 766.22 | G19: 1 199 766.22 | I19: 0.00
A20: 15 | B20: г. Андреаполь, Гагарина ул., д. 6 | C20: ПСД | D20: 2. Ремонт крыши | E20: 27 651.3 | F20: 27 651.29 | G20: 27 651.29 | I20: 0.00
A21: 16 | B21: г. Андреаполь, Гвардейская пл., д. 1 | C21: СК | D21: 2. Ремонт крыши | E21: 208 865.21 | I21: 0.00
A22: 17 | B22: г. Андреаполь, Гвардейская пл., д. 1 | C22: ПСД | D22: 2. Ремонт крыши | E22: 780 804.52 | F22: 197,213.58 | G22: 197,213.58 | I22: 0.00 | P22: 197 213.58 | S22: =E22-P22 -> 583590.94
A23: 18 | B23: г. Андреаполь, Гвардейская пл., д. 1 | C23: СМР | D23: 2. Ремонт крыши | E23: 9 760 056.48 | F23: 2,572,116.00 | G23: 2,572,116.00 | I23: 0.00
A24: 19 | B24: г. Андреаполь, Гвардейская пл., д. 9 | C24: ПСД | D24: 4. Ремонт фасада | E24: 86 295.62 | F24: 86 295.62 | G24: 86 295.62 | I24: 0.00
A25: 20 | B25: г. Андреаполь, Гвардейская пл., д. 9 | C25: СК | D25: 4. Ремонт фасада | E25: 23 084.08 | F25: 23 084.08 | G25: 23 084.08 | I25: 0.00
A26: 21 | B26: г. Андреаполь, Гвардейская пл., д. 9 | C26: СК | D26: 2. Ремонт крыши | E26: 29 670.11 | I26: 0.00
A27: 22 | B27: г. Андреаполь, Гвардейская пл., д. 9 | C27: ПСД | D27: 2. Ремонт крыши | E27: 101 702.71 | F27: 29 330 | G27: 29 330 | I27: 0.00
A28: 23 | B28: г. Андреаполь, Гвардейская пл., д. 9 | C28: СМР | D28: 4. Ремонт фасада | E28: 4 607 312 | F28: 846 439.33 | G28: 846 439.33 | I28: 0.00
A29: 24 | B29: г. Андреаполь, Гвардейская пл., д. 9 | C29: СМР | D29: 2. Ремонт крыши | E29: 1 386 453.89 | F29: 1 013 455.2 | G29: 1 013 455.2 | I29: 0.00
A30: 25 | B30: г. Андреаполь, Карла Маркса ул., д. 3 | C30: СК | D30: 2. Ремонт крыши | E30: 41 999.58 | I30: 0.00
A31: 26 | B31: г. Андреаполь, Карла Маркса ул., д. 3 | C31: СМР | D31: 2. Ремонт крыши | E31: 1 962 597 | F31: 1320 539. | G31: 1320 539. | I31: 0.00 | P31: 1 320 539 | S31: =E31-P31 -> 642058.00
A32: 27 | B32: г. Андреаполь, Карла Маркса ул., д. 3 | C32: ПСД | D32: 2. Ремонт крыши | E32: 116 710.64 | F32: 27 624.43 | G32: 27 624.43 | I32: 0.00
A33: 28 | B33: г. Андреаполь, Кленовая ул., д. 18 | C33: СМР | D33: 2. Ремонт крыши | E33: 3 642 980 | F33: 1579 522. | G33: 1579 522. | I33: 0.00
A34: 29 | B34: г. Андреаполь, Кленовая ул., д. 18 | C34: ПСД | D34: 2. Ремонт крыши | E34: 291 438.4 | F34: 135 929 | G34: 135 929 | I34: 0.00
A35: 30 | B35: г. Андреаполь, Кленовая ул., д. 18 | C35: СК | D35: 2. Ремонт крыши | E35: 77 959.77 | I35: 0.00
A36: 31 | B36: г. Андреаполь, Кленовая ул., д. 19 | C36: СМР | D36: 4. Ремонт фасада | E36: 995 391.62 | F36: 622 575.6 | G36: 622 575.6 | I36: 0.00
A37: 32 | B37: г. Андреаполь, Кленовая ул., д. 19 | C37: ПСД | D37: 2. Ремонт крыши | E37: 113 085.98 | F37: 113 085.98 | G37: 113 085.98 | I37: 0.00
A38: 33 | B38: г. Андреаполь, Кленовая ул., д. 19 | C38: СК | D38: 4. Ремонт фасада | E38: 21 301.38 | F38: 21 301.38 | G38: 21 301.38 | I38: 0.00
A39: 34 | B39: г. Андреаполь, Кленовая ул., д. 19 | C39: СМР | D39: 2. Ремонт крыши | E39: 1 413 580.38 | F39: 1 120 870.8 | G39: 1 120 870.8 | I39: 0.00
A40: 35 | B40: г. Андреаполь, Кленовая ул., д. 19 | C40: ПСД | D40: 4. Ремонт фасада | E40: 79 631.02 | F40: 79 631.02 | G40: 79 631.02 | I40: 0.00
A41: 36 | B41: г. Андреаполь, Кленовая ул., д. 19 | C41: СК | D41: 2. Ремонт крыши | E41: 30 250.62 | F41: 30 250.62 | G41: 30 250.62 | I41: 0.00
A42: 37 | B42: г. Андреаполь, Кленовая ул., д. 19а | C42: ПСД | D42: 2. Ремонт крыши | E42: 232 073 | F42: 114 110 | G42: 114 110 | I42: 0.00
A43: 38 | B43: г. Андреаполь, Кленовая ул., д. 19а | C43: СК | D43: 2. Ремонт крыши | E43: 62 079.53 | F43: 61,440.39 | G43: 61,440.39 | I43: 0.00
A44: 39 | B44: г. Андреаполь, Кленовая ул., д. 19а | C44: СМР | D44: 2. Ремонт крыши | E44: 2 900 912.47 | F44: 2 100 051.34 | G44: 2 100 051.34 | I44: 0.00
A45: 40 | B45: г. Андреаполь, Кленовая ул., д. 35 | C45: ПСД | D45: 2. Ремонт крыши | E45: 34 989.39 | F45: 34 989.39 | G45: 5 248.4 | I45: 29,740.99
A46: 41 | B46: г. Андреаполь, Кленовая ул., д. 35 | C46: СК | D46: 2. Ремонт крыши | E46: 18 125.44 | F46: 18 125.44 | G46: 2 718.82 | I46: 15,406.62
A47: 42 | B47: г. Андреаполь, Кленовая ул., д. 35 | C47: СМР | D47: 2. Ремонт крыши | E47: 852 280.85 | F47: 852 280.85 | G47: 127 842.13 | I47: 724,438.72
A48: 43 | B48: г. Андреаполь, М.Складская ул., д. 4 | C48: СК | D48: 2. Ремонт крыши | E48: 52 299.26 | F48: 34 635.34 | G48: 34 635.34 | I48: 0.00
A49: 44 | B49: г. Андреаполь, М.Складская ул., д. 4 | C49: ПСД | D49: 2. Ремонт крыши | E49: 124 676.16 | F49: 29 704.99 | G49: 29 704.99 | I49: 0.00
A50: 45 | B50: г. Андреаполь, М.Складская ул., д. 4 | C50: СМР | D50: 2. Ремонт крыши | E50: 2 443 890.58 | F50: 2 053 324 | G50: 2 053 324 | I50: 0.00
A51: 46 | B51: г. Андреаполь, Октябрьская ул., д. 56 | C51: ПСД | D51: 4. Ремонт фасада | E51: 86 976 | F51: 50 197.64 | G51: 50 197.64 | I51: 0.00
A52: 47 | B52: г. Андреаполь, Октябрьская ул., д. 56 | C52: СМР | D52: 2. Ремонт крыши | E52: 1 548 400 | F52: 1142 816 | G52: 1142 816 | I52: 0.00 | P52: 1 142 816 | S52: =E52-P52 -> 405584.00
A53: 48 | B53: г. Андреаполь, Октябрьская ул., д. 56 | C53: СМР | D53: 4. Ремонт фасада | E53: 1 087 199.92 | F53: 574 180.41 | G53: 574 180.41 | I53: 0.00
A54: 49 | B54: г. Андреаполь, Октябрьская ул., д. 56 | C54: СК | D54: 4. Ремонт фасада | E54: 23 266.08 | F54: 13 427.87 | G54: 13 427.87 | I54: 0.00
A55: 50 | B55: г. Андреаполь, Октябрьская ул., д. 56 | C55: ПСД | D55: 2. Ремонт крыши | E55: 97 901.79 | F55: 65 217.97 | G55: 65 217.97 | I55: 0.00
A56: 51 | B56: г. Андреаполь, Октябрьская ул., д. 56 | C56: СК | D56: 2. Ремонт крыши | E56: 33 135.76 | I56: 0.00
A57: 52 | B57: г. Андреаполь, Октябрьская ул., д. 59 | C57: ПСД | D57: 2. Ремонт крыши | E57: 74 502.12 | F57: 28 409.46 | G57: 28 409.46 | I57: 0.00
A58: 53 | B58: г. Андреаполь, Октябрьская ул., д. 59 | C58: ПСД | D58: 4. Ремонт фасада | E58: 146 893 | F58: 146 893 | G58: 146 893 | I58: 0.00
A59: 54 | B59: г. Андреаполь, Октябрьская ул., д. 59 | C59: СК | D59: 4. Ремонт фасада | E59: 39 293.83 | F59: 39 293.83 | G59: 39 293.83 | I59: 0.00
A60: 55 | B60: г. Андреаполь, Октябрьская ул., д. 59 | C60: СМР | D60: 2. Ремонт крыши | E60: 1 893 779 | F60: 1 152 531.6 | G60: 1 152 531.6 | I60: 0.00
A61: 56 | B61: г. Андреаполь, Октябрьская ул., д. 59 | C61: СМР | D61: 4. Ремонт фасада | E61: 1 836 160.17 | F61: 472 285.2 | G61: 472 285.2 | I61: 0.00
A62: 57 | B62: г. Андреаполь, Октябрьская ул., д. 59 | C62: СК | D62: 2. Ремонт крыши | E62: 40 526.88 | F62: 20 473.61 | G62: 20 473.61 | I62: 0.00
A63: 58 | B63: г. Андреаполь, Октябрьская ул., д. 60 | C63: СК | D63: 4. Ремонт фасада | E63: 21 301.38 | F63: 21 301.38 | G63: 21 301.38 | I63: 0.00
A64: 59 | B64: г. Андреаполь, Октябрьская ул., д. 60 | C64: СМР | D64: 4. Ремонт фасада | E64: 995 391.62 | F64: 622 424 | G64: 622 424 | I64: 0.00
A65: 60 | B65: г. Андреаполь, Октябрьская ул., д. 60 | C65: СМР | D65: 2. Ремонт крыши | E65: 1 115 384.83 | F65: 807 428.4 | G65: 807 428.4 | I65: 0.00
A66: 61 | B66: г. Андреаполь, Октябрьская ул., д. 60 | C66: ПСД | D66: 2. Ремонт крыши | E66: 53 475.94 | F66: 27 265.79 | G66: 27 265.79 | I66: 0.00
A67: 62 | B67: г. Андреаполь, Октябрьская ул., д. 60 | C67: СК | D67: 2. Ремонт крыши | E67: 23 869.23 | F67: 14 551.54 | G67: 14 551.54 | I67: 0.00
A68: 63 | B68: г. Андреаполь, Октябрьская ул., д. 60 | C68: ПСД | D68: 4. Ремонт фасада | E68: 79 631 | F68: 79 631 | G68: 79 631 | I68: 0.00
A69: 64 | B69: г. Андреаполь, Половчени ул., д. 5а | C69: ПСД | D69: 4. Ремонт фасада | E69: 97 606 | F69: 55 545.09 | G69: 55 545.09 | I69: 0.00
A70: 65 | B70: г. Андреаполь, Половчени ул., д. 5а | C70: СМР | D70: 4. Ремонт фасада | E70: 1 220 080.28 | F70: 612 419.2 | G70: 612 419.2 | I70: 0.00
A71: 66 | B71: г. Андреаполь, Половчени ул., д. 5а | C71: СК | D71: 2. Ремонт крыши | E71: 25 093.97 | F71: 15 766.77 | G71: 15 766.77 | I71: 0.00
A72: 67 | B72: г. Андреаполь, Половчени ул., д. 5а | C72: СК | D72: 4. Ремонт фасада | E72: 26 109.72 | F72: 14 858.31 | G72: 14 858.31 | I72: 0.00
A73: 68 | B73: г. Андреаполь, Половчени ул., д. 5а | C73: ПСД | D73: 2. Ремонт крыши | E73: 57 795.53 | F73: 27 556.67 | G73: 27 556.67 | I73: 0.00
A74: 69 | B74: г. Андреаполь, Половчени ул., д. 5а | C74: СМР | D74: 2. Ремонт крыши | E74: 1 172 615.5 | F74: 853 168.01 | G74: 853 168.01 | I74: 0.00
A75: 70 | B75: г. Андреаполь, Половчени ул., д. 8 | C75: СК | D75: 2. Ремонт крыши | E75: 28 993.79 | I75: 0.00
A76: 71 | B76: г. Андреаполь, Половчени ул., д. 8 | C76: СМР | D76: 2. Ремонт крыши | E76: 1 354 850 | F76: 821 764 | G76: 821 764 | I76: 0.00 | P76: 821 764 | S76: =E76-P76 -> 533086.00
A77: 72 | B77: г. Андреаполь, Половчени ул., д. 8 | C77: СМР | D77: 4. Ремонт фасада | E77: 879 424.32 | I77: 0.00
A78: 73 | B78: г. Андреаполь, Половчени ул., д. 8 | C78: ПСД | D78: 2. Ремонт крыши | E78: 89 950.82 | F78: 27 130.28 | G78: 27 130.28 | I78: 0.00
A79: 74 | B79: г. Андреаполь, Половчени ул., д. 8 | C79: СК | D79: 4. Ремонт фасада | E79: 18 819.68 | I79: 0.00
A80: 75 | B80: г. Андреаполь, Половчени ул., д. 8 | C80: ПСД | D80: 4. Ремонт фасада | E80: 45 490.47 | F80: 16 902.07 | G80: 16 902.07 | I80: 0.00
A81: 76 | B81: г. Андреаполь, Советская ул., д. 65а | C81: СМР | D81: 2. Ремонт крыши | E81: 2 889 260 | F81: 928 046. | G81: 928 046. | I81: 0.00
A82: 77 | B82: г. Андреаполь, Советская ул., д. 65а | C82: ПСД | D82: 4. Ремонт фасада | E82: 45 062.21 | F82: 16 951.82 | G82: 16 951.82 | I82: 0.00
A83: 78 | B83: г. Андреаполь, Советская ул., д. 65а | C83: СК | D83: 2. Ремонт крыши | E83: 61 830.16 | I83: 0.00
A84: 79 | B84: г. Андреаполь, Советская ул., д. 65а | C84: ПСД | D84: 2. Ремонт крыши | E84: 231 140.8 | F84: 110 296 | G84: 110 296 | I84: 0.00
A85: 80 | B85: г. Андреаполь, Театральная ул., д. 11 | C85: ПСД | D85: 2. Ремонт крыши | E85: 142 587 | F85: 131 893 | G85: 131 893 | I85: 0.00
A86: 81 | B86: г. Андреаполь, Театральная ул., д. 11 | C86: СМР | D86: 2. Ремонт крыши | E86: 1 782 339.93 | F86: 1 401 994.49 | G86: 1 401 994.49 | I86: 0.00
A87: 82 | B87: г. Андреаполь, Театральная ул., д. 11 | C87: СК | D87: 2. Ремонт крыши | E87: 38 142.07 | F87: 37 951.36 | G87: 37 951.36 | I87: 0.00
A88: 83 | B88: г. Андреаполь, Театральная ул., д. 3 | C88: СК | D88: 2. Ремонт крыши | E88: 16 440.56 | I88: 0.00
A89: 84 | B89: г. Андреаполь, Театральная ул., д. 3 | C89: ПСД | D89: 2. Ремонт крыши | E89: 61 460 | I89: 0.00
A90: 85 | B90: г. Андреаполь, Театральная ул., д. 3 | C90: СМР | D90: 2. Ремонт крыши | E90: 768 250.44 | I90: 0.00
A91: 86 | B91: г. Андреаполь, Театральная ул., д. 3 | C91: ПСД | D91: 4. Ремонт фасада | E91: 45 057.13 | F91: 16 867.24 | G91: 16 867.24 | I91: 0.00
A92: 87 | B92: г. Андреаполь, Театральная ул., д. 8 | C92: СМР | D92: 2. Ремонт крыши | E92: 1 720 880.16 | F92: 1 088 030 | G92: 1 088 030 | I92: 0.00
A93: 88 | B93: г. Андреаполь, Театральная ул., д. 8 | C93: СК | D93: 2. Ремонт крыши | E93: 36 826.84 | F93: 36 826.84 | G93: 36 826.84 | I93: 0.00
A94: 89 | B94: г. Андреаполь, Театральная ул., д. 8 | C94: ПСД | D94: 2. Ремонт крыши | E94: 137 670 | F94: 137 670 | G94: 137 670 | I94: 0.00
A95: 90 | B95: г. Бежецк, Большая ул., д. 17/19 | C95: СМР | D95: 2. Ремонт крыши | E95: 2 653 283.33 | F95: 2 293 105.29 | G95: 2 293 105.29 | I95: 0.00
A96: 91 | B96: г. Бежецк, Большая ул., д. 17/19 | C96: СК | D96: 2. Ремонт крыши | E96: 56 780.26 | I96: 0.00
A97: 92 | B97: г. Бежецк, Большая ул., д. 17/19 | C97: ПСД | D97: 2. Ремонт крыши | E97: 212 262.67 | F97: 183 607.22 | G97: 183 607.22 | I97: 0.00
A98: 93 | B98: г. Бежецк, Воздвиженский пер., д. 32 | C98: ПСД | D98: 2. Ремонт крыши | E98: 277 109.28 | F98: 239 699.53 | G98: 239 699.53 | I98: 0.00
A99: 94 | B99: г. Бежецк, Воздвиженский пер., д. 32 | C99: СК | D99: 2. Ремонт крыши | E99: 74 126.73 | I99: 0.00
A100: 95 | B100: г. Бежецк, Воздвиженский пер., д. 32 | C100: СМР | D100: 2. Ремонт крыши | E100: 3 463 866 | F100: 2 996 244.07 | G100: 2 996 244.07 | I100: 0.00
A101: 96 | B101: г. Бежецк, Восточный проезд., д. 1 | C101: СМР | D101: 2. Ремонт крыши | E101: 1 941 270.79 | F101: 1 824 602.68 | G101: 1 816 391.97 | I101: 8,210.71
A102: 97 | B102: г. Бежецк, Восточный проезд., д. 1 | C102: ПСД | D102: 2. Ремонт крыши | E102: 86 462 | F102: 86 462 | G102: 86 072.92 | I102: 389.08
A103: 98 | B103: г. Бежецк, Восточный проезд., д. 1 | C103: СК | D103: 2. Ремонт крыши | E103: 39 419.4 | F103: 39 419.4 | G103: 39 242.01 | I103: 177.39
A104: 99 | B104: г. Бежецк, Восточный проезд., д. 20 | C104: ПСД | D104: 2. Ремонт крыши | E104: 270 085.3 | F104: 244 145.21 | G104: 244 145.21 | I104: 0.00
A105: 100 | B105: г. Бежецк, Восточный проезд., д. 20 | C105: СМР | D105: 2. Ремонт крыши | E105: 3 376 066.2 | F105: 3 151 827.88 | G105: 3 151 827.88 | I105: 0.00
A106: 101 | B106: г. Бежецк, Восточный проезд., д. 20 | C106: СК | D106: 2. Ремонт крыши | E106: 72 247.82 | F106: 0 | G106: 0 | I106: 0.00
A107: 102 | B107: г. Бежецк, Восточный проезд., д. 22 | C107: СМР | D107: 2. Ремонт крыши | E107: 6 358 557.27 | F107: 4,355,611.43 | G107: 4,355,611.43 | I107: 0.00 | P107: 4 355 611.43 | S107: =E107-P107 -> 2002945.84
A108: 103 | B108: г. Бежецк, Восточный проезд., д. 22 | C108: СК | D108: 2. Ремонт крыши | E108: 136 073.13 | I108: 0.00
A109: 104 | B109: г. Бежецк, Восточный проезд., д. 22 | C109: ПСД | D109: 2. Ремонт крыши | E109: 254 377 | F109: 254 377 | G109: 254 377 | I109: 0.00
A110: 105 | B110: г. Бежецк, Заводская ул., д. 4 | C110: ПСД | D110: 6. Ремонт систем электроснабжения | E110: 76 861.16 | F110: 73 281.77 | G110: 73 281.77 | I110: 0.00
A111: 106 | B111: г. Бежецк, Заводская ул., д. 4 | C111: СМР | D111: 6. Ремонт систем электроснабжения | E111: 960 764.48 | F111: 960 764.64 | G111: 960 764.64 | I111: 0.00
A112: 107 | B112: г. Бежецк, Заводская ул., д. 4 | C112: СК | D112: 6. Ремонт систем электроснабжения | E112: 20 560.36 | I112: 0.00
A113: 108 | B113: г. Бежецк, Инженерная ул., д. 1 | C113: ПСД | D113: 4. Ремонт фасада | E113: 135 118 | F113: 132 953.51 | G113: 132 953.51 | I113: 0.00
A114: 109 | B114: г. Бежецк, Инженерная ул., д. 1 | C114: СМР | D114: 4. Ремонт фасада | E114: 1 688 976.89 | F114: 1 526 352.03 | G114: 1 526 352.03 | I114: 0.00
A115: 110 | B115: г. Бежецк, Инженерная ул., д. 1 | C115: СК | D115: 4. Ремонт фасада | E115: 36 144.11 | F115: 35 963.39 | G115: 35 963.39 | I115: 0.00
A116: 111 | B116: г. Бежецк, Инженерная ул., д. 11/8 | C116: СМР | D116: 4. Ремонт фасада | E116: 3 378 960.25 | F116: 1 740 069.4 | G116: 1 740 069.4 | I116: 0.00
A117: 112 | B117: г. Бежецк, Инженерная ул., д. 11/8 | C117: СК | D117: 4. Ремонт фасада | E117: 72 309.75 | I117: 0.00
A118: 113 | B118: г. Бежецк, Инженерная ул., д. 11/8 | C118: СМР | D118: 2. Ремонт крыши | E118: 1 261 866.4 | F118: 1 214 996.44 | G118: 1 214 996.44 | I118: 0.00
A119: 114 | B119: г. Бежецк, Инженерная ул., д. 11/8 | C119: ПСД | D119: 4. Ремонт фасада | E119: 270 317 | F119: 270 317 | G119: 270 317 | I119: 0.00
A120: 115 | B120: г. Бежецк, Инженерная ул., д. 11/8 | C120: СК | D120: 2. Ремонт крыши | E120: 24 701.3 | F120: 24 701.3 | G120: 24 701.3 | I120: 0.00
A121: 116 | B121: г. Бежецк, Инженерная ул., д. 11/8 | C121: ПСД | D121: 2. Ремонт крыши | E121: 30 679.3 | F121: 30 679.3 | G121: 30 679.3 | I121: 0.00
A122: 117 | B122: г. Бежецк, Инженерная ул., д. 3 | C122: СМР | D122: 2. Ремонт крыши | E122: 2 577 480.48 | F122: 2 500 651.73 | G122: 2 500 651.73 | I122: 0.00
A123: 118 | B123: г. Бежецк, Инженерная ул., д. 3 | C123: СК | D123: 2. Ремонт крыши | E123: 55 158.08 | F123: 24 545.35 | G123: 24 545.35 | I123: 0.00
A124: 119 | B124: г. Бежецк, Инженерная ул., д. 3 | C124: ПСД | D124: 2. Ремонт крыши | E124: 205 008.2 | F124: 197 430.78 | G124: 197 430.78 | I124: 0.00
A125: 120 | B125: г. Бежецк, Инженерная ул., д. 3 | C125: СМР | D125: 6. Ремонт систем электроснабжения | E125: 817 000 | I125: 0.00
A126: 121 | B126: г. Бежецк, Инженерная ул., д. 3 | C126: СК | D126: 6. Ремонт систем электроснабжения | E126: 17 483.8 | I126: 0.00
A127: 122 | B127: г. Бежецк, Инженерная ул., д. 3 | C127: ПСД | D127: 6. Ремонт систем электроснабжения | E127: 39 040.1 | F127: 39 040.1 | G127: 39 040.1 | I127: 0.00
A128: 123 | B128: г. Бежецк, Инженерная ул., д. 6 | C128: СК | D128: 7. Ремонт систем теплоснабжения | E128: 18 676.43 | I128: 0.00
A129: 124 | B129: г. Бежецк, Инженерная ул., д. 6 | C129: СМР | D129: 10. Ремонт систем водоотведения | E129: 446 424 | I129: 0.00
A130: 125 | B130: г. Бежецк, Инженерная ул., д. 6 | C130: ПСД | D130: 8. Ремонт систем холодного водоснабжения | E130: 41 550.72 | F130: 34 092.2 | G130: 34 092.2 | I130: 0.00
A131: 126 | B131: г. Бежецк, Инженерная ул., д. 6 | C131: ПСД | D131: 7. Ремонт систем теплоснабжения | E131: 68 318.6 | F131: 40 293.7 | G131: 40 293.7 | I131: 0.00
A132: 127 | B132: г. Бежецк, Инженерная ул., д. 6 | C132: СК | D132: 6. Ремонт систем электроснабжения | E132: 9 464.48 | F132: 0 | G132: 0 | I132: 0.00
A133: 128 | B133: г. Бежецк, Инженерная ул., д. 6 | C133: ПСД | D133: 10. Ремонт систем водоотведения | E133: 35 713.92 | I133: 0.00
A134: 129 | B134: г. Бежецк, Инженерная ул., д. 6 | C134: ПСД | D134: 6. Ремонт систем электроснабжения | E134: 35 381.3 | F134: 29 739.53 | G134: 29 739.53 | I134: 0.00
A135: 130 | B135: г. Бежецк, Инженерная ул., д. 6 | C135: СМР | D135: 6. Ремонт систем электроснабжения | E135: 442 265.52 | F135: 361 332 | G135: 361 332 | I135: 0.00
A136: 131 | B136: г. Бежецк, Инженерная ул., д. 6 | C136: СК | D136: 10. Ремонт систем водоотведения | E136: 9 553.47 | I136: 0.00
A137: 132 | B137: г. Бежецк, Инженерная ул., д. 6 | C137: СМР | D137: 7. Ремонт систем теплоснабжения | E137: 872 730.57 | I137: 0.00
A138: 133 | B138: г. Бежецк, Инженерная ул., д. 6 | C138: СК | D138: 8. Ремонт систем холодного водоснабжения | E138: 11 114.8 | F138: 0 | G138: 0 | I138: 0.00
A139: 134 | B139: г. Бежецк, Инженерная ул., д. 6 | C139: СМР | D139: 8. Ремонт систем холодного водоснабжения | E139: 519 383.2 | F139: 169 068 | G139: 169 068 | I139: 0.00
A140: 135 | B140: г. Бежецк, Кашинская ул., д. 31 | C140: СК | D140: 2. Ремонт крыши | E140: 58 987.84 | F140: 58 987.84 | G140: 58 987.84 | I140: 0.00
A141: 136 | B141: г. Бежецк, Кашинская ул., д. 31 | C141: СК | D141: 4. Ремонт фасада | E141: 31 260.82 | I141: 0.00
A142: 137 | B142: г. Бежецк, Кашинская ул., д. 31 | C142: СК | D142: 6. Ремонт систем электроснабжения | E142: 8 670.58 | I142: 0.00
A143: 138 | B143: г. Бежецк, Кашинская ул., д. 31 | C143: ПСД | D143: 6. Ремонт систем электроснабжения | E143: 32 413.34 | F143: 32 413.34 | G143: 32 413.34 | I143: 0.00
A144: 139 | B144: г. Бежецк, Кашинская ул., д. 31 | C144: ПСД | D144: 4. Ремонт фасада | E144: 116 862.71 | F144: 116 862.71 | G144: 116 862.71 | I144: 0.00
A145: 140 | B145: г. Бежецк, Кашинская ул., д. 31 | C145: СМР | D145: 2. Ремонт крыши | E145: 2 756 441.16 | F145: 2 738 612.5 | G145: 2 738 612.5 | I145: 0.00
A146: 141 | B146: г. Бежецк, Кашинская ул., д. 31 | C146: СМР | D146: 4. Ремонт фасада | E146: 1 460 786.18 | F146: 1 412 553.58 | G146: 1 412 553.58 | I146: 0.00
A147: 142 | B147: г. Бежецк, Кашинская ул., д. 31 | C147: ПСД | D147: 2. Ремонт крыши | E147: 220 514.95 | F147: 220 514.95 | G147: 220 514.95 | I147: 0.00
A148: 143 | B148: г. Бежецк, Кашинская ул., д. 31 | C148: СМР | D148: 6. Ремонт систем электроснабжения | E148: 405 167.42 | F148: 382 444.8 | G148: 382 444.8 | I148: 0.00
A149: 144 | B149: г. Бежецк, Льва Толстого ул., д. 1/3 | C149: ПСД | D149: 6. Ремонт систем электроснабжения | E149: 21 631 | F149: 21 631 | G149: 21 574.76 | I149: 56.24
A150: 145 | B150: г. Бежецк, Льва Толстого ул., д. 1/3 | C150: СМР | D150: 6. Ремонт систем электроснабжения | E150: 491 935.8 | F150: 491 308.73 | G150: 490 072.43 | I150: 1,236.30
A151: 146 | B151: г. Бежецк, Льва Толстого ул., д. 1/3 | C151: СК | D151: 6. Ремонт систем электроснабжения | E151: 9 991.2 | F151: 9 991.2 | G151: 9 965.22 | I151: 25.98
A152: 147 | B152: г. Бежецк, Льва Толстого ул., д. 18 | C152: ПСД | D152: 2. Ремонт крыши | E152: 96 863.92 | F152: 91 897.78 | G152: 91 897.78 | I152: 0.00
A153: 148 | B153: г. Бежецк, Льва Толстого ул., д. 18 | C153: ПСД | D153: 6. Ремонт систем электроснабжения | E153: 20 007.12 | F153: 17 028.59 | G153: 17 028.59 | I153: 0.00
A154: 149 | B154: г. Бежецк, Льва Толстого ул., д. 18 | C154: СК | D154: 2. Ремонт крыши | E154: 26 018.1 | F154: 11 578.05 | G154: 11 578.05 | I154: 0.00
A155: 150 | B155: г. Бежецк, Льва Толстого ул., д. 18 | C155: СМР | D155: 6. Ремонт систем электроснабжения | E155: 245 088.98 | F155: 232 468.54 | G155: 232 468.54 | I155: 0.00
A156: 151 | B156: г. Бежецк, Льва Толстого ул., д. 18 | C156: СК | D156: 6. Ремонт систем электроснабжения | E156: 5 244.9 | F156: 4 432.17 | G156: 4 432.17 | I156: 0.00
A157: 152 | B157: г. Бежецк, Льва Толстого ул., д. 18 | C157: СМР | D157: 2. Ремонт крыши | E157: 1 215 798.98 | F157: 1 203 100.01 | G157: 1 203 100.01 | I157: 0.00
A158: 153 | B158: г. Бежецк, Льва Толстого ул., д. 4 | C158: СК | D158: 2. Ремонт крыши | E158: 191 828.25 | I158: 0.00
A159: 154 | B159: г. Бежецк, Льва Толстого ул., д. 4 | C159: ПСД | D159: 2. Ремонт крыши | E159: 717 114.94 | F159: 301,690.00 | G159: 301,690.00 | I159: 0.00
A160: 155 | B160: г. Бежецк, Льва Толстого ул., д. 4 | C160: СМР | D160: 2. Ремонт крыши | E160: 8 963 936.8 | F160: 6,023,205.96 | G160: 6,023,205.96 | I160: 0.00
A161: 156 | B161: г. Бежецк, Льва Толстого ул., д. 5 | C161: СМР | D161: 7. Ремонт систем теплоснабжения | E161: 1 807 657.6 | I161: 0.00
A162: 157 | B162: г. Бежецк, Льва Толстого ул., д. 5 | C162: СМР | D162: 10. Ремонт систем водоотведения | E162: 701 362.2 | I162: 0.00
A163: 158 | B163: г. Бежецк, Льва Толстого ул., д. 5 | C163: ПСД | D163: 10. Ремонт систем водоотведения | E163: 42 653.33 | I163: 0.00
A164: 159 | B164: г. Бежецк, Льва Толстого ул., д. 5 | C164: СК | D164: 7. Ремонт систем теплоснабжения | E164: 38 683.87 | I164: 0.00
A165: 160 | B165: г. Бежецк, Льва Толстого ул., д. 5 | C165: ПСД | D165: 7. Ремонт систем теплоснабжения | E165: 109 887.06 | I165: 0.00
A166: 161 | B166: г. Бежецк, Льва Толстого ул., д. 5 | C166: СК | D166: 10. Ремонт систем водоотведения | E166: 15 009.15 | I166: 0.00
A167: 162 | B167: г. Бежецк, М.И.Кузнецова ул., д. 16 | C167: ПСД | D167: 6. Ремонт систем электроснабжения | E167: 21 868.1 | F167: 18 693.02 | G167: 18 693.02 | I167: 0.00
A168: 163 | B168: г. Бежецк, М.И.Кузнецова ул., д. 16 | C168: СМР | D168: 8. Ремонт систем холодного водоснабжения | E168: 317 009.99 | F168: 174 429.6 | G168: 174 429.6 | I168: 0.00
A169: 164 | B169: г. Бежецк, М.И.Кузнецова ул., д. 16 | C169: СК | D169: 8. Ремонт систем холодного водоснабжения | E169: 6 784.01 | F169: 0 | G169: 0 | I169: 0.00
A170: 165 | B170: г. Бежецк, М.И.Кузнецова ул., д. 16 | C170: ПСД | D170: 7. Ремонт систем теплоснабжения | E170: 40 651.26 | F170: 24 924.06 | G170: 24 924.06 | I170: 0.00
A171: 166 | B171: г. Бежецк, М.И.Кузнецова ул., д. 16 | C171: СМР | D171: 7. Ремонт систем теплоснабжения | E171: 520 372.04 | F171: 335 599.65 | G171: 335 599.65 | I171: 0.00
A172: 167 | B172: г. Бежецк, М.И.Кузнецова ул., д. 16 | C172: СК | D172: 7. Ремонт систем теплоснабжения | E172: 11 135.96 | I172: 0.00
A173: 168 | B173: г. Бежецк, М.И.Кузнецова ул., д. 16 | C173: ПСД | D173: 8. Ремонт систем холодного водоснабжения | E173: 25 559.56 | F173: 21 724.62 | G173: 21 724.62 | I173: 0.00
A174: 169 | B174: г. Бежецк, М.И.Кузнецова ул., д. 24 | C174: СМР | D174: 8. Ремонт систем холодного водоснабжения | E174: 1 352 880.9 | I174: 0.00
A175: 170 | B175: г. Бежецк, М.И.Кузнецова ул., д. 24 | C175: ПСД | D175: 8. Ремонт систем холодного водоснабжения | E175: 108 230.47 | I175: 0.00
A176: 171 | B176: г. Бежецк, М.И.Кузнецова ул., д. 24 | C176: СК | D176: 8. Ремонт систем холодного водоснабжения | E176: 28 951.65 | I176: 0.00
A177: 172 | B177: г. Бежецк, М.И.Кузнецова ул., д. 8 | C177: СК | D177: 2. Ремонт крыши | E177: 76 119.57 | I177: 0.00
A178: 173 | B178: г. Бежецк, М.И.Кузнецова ул., д. 8 | C178: ПСД | D178: 2. Ремонт крыши | E178: 284 559.14 | F178: 101 615.36 | G178: 101 615.36 | I178: 0.00
A179: 174 | B179: г. Бежецк, М.И.Кузнецова ул., д. 8 | C179: СМР | D179: 2. Ремонт крыши | E179: 3 556 989.29 | F179: 3 412 862.82 | G179: 3 412 862.82 | I179: 0.00
A180: 175 | B180: г. Бежецк, Мира ул., д. 2/50 | C180: СМР | D180: 2. Ремонт крыши | E180: 8 001 856.8 | I180: 0.00
A181: 176 | B181: г. Бежецк, Мира ул., д. 2/50 | C181: ПСД | D181: 2. Ремонт крыши | E181: 433 191 | F181: 428 234.3 | G181: 428 234.3 | I181: 0.00
A182: 177 | B182: г. Бежецк, Мира ул., д. 2/50 | C182: СК | D182: 2. Ремонт крыши | E182: 171 239.74 | I182: 0.00
A183: 178 | B183: г. Бежецк, Нечаева ул., д. 16 | C183: СК | D183: 2. Ремонт крыши | E183: 130 047.09 | F183: 130,047.09 | G183: 130,047.09 | I183: 0.00
A184: 179 | B184: г. Бежецк, Нечаева ул., д. 16 | C184: СМР | D184: 2. Ремонт крыши | E184: 6 076 966.91 | F184: 4 539 236.2 | G184: 4 539 236.2 | I184: 0.00
A185: 180 | B185: г. Бежецк, Нечаева ул., д. 16 | C185: ПСД | D185: 2. Ремонт крыши | E185: 486 157 | F185: 116 100 | G185: 116 100 | I185: 0.00
A186: 181 | B186: г. Бежецк, Нечаева ул., д. 16 | C186: СМР | D186: 11. Ремонт систем газоснабжения | E186: 485 318.5 | F186: 183 611.13 | G186: 183 611.13 | I186: 0.00
A187: 182 | B187: г. Бежецк, Нечаева ул., д. 16 | C187: ПСД | D187: 11. Ремонт систем газоснабжения | E187: 38 825.48 | F187: 34 835.41 | G187: 34 835.41 | I187: 0.00
A188: 183 | B188: г. Бежецк, Нечаева ул., д. 16 | C188: СК | D188: 11. Ремонт систем газоснабжения | E188: 10 385.82 | I188: 0.00
A189: 184 | B189: г. Бежецк, Нечаева ул., д. 2/7 | C189: ПСД | D189: 6. Ремонт систем электроснабжения | E189: 34 149.47 | F189: 28 139.6 | G189: 28 139.6 | I189: 0.00
A190: 185 | B190: г. Бежецк, Нечаева ул., д. 2/7 | C190: СК | D190: 2. Ремонт крыши | E190: 76 496.66 | F190: 76 114.18 | G190: 76 114.18 | I190: 0.00
A191: 186 | B191: г. Бежецк, Нечаева ул., д. 2/7 | C191: СК | D191: 6. Ремонт систем электроснабжения | E191: 13 219.03 | F191: 6 200.86 | G191: 6 200.86 | I191: 0.00
A192: 187 | B192: г. Бежецк, Нечаева ул., д. 2/7 | C192: ПСД | D192: 2. Ремонт крыши | E192: 285 969 | F192: 281 855.45 | G192: 281 855.45 | I192: 0.00
A193: 188 | B193: г. Бежецк, Нечаева ул., д. 2/7 | C193: ПСД | D193: 4. Ремонт фасада | E193: 132 244.79 | F193: 28 139.6 | G193: 28 139.6 | I193: 0.00
A194: 189 | B194: г. Бежецк, Нечаева ул., д. 2/7 | C194: СМР | D194: 6. Ремонт систем электроснабжения | E194: 617 711.5 | F194: 360 941.45 | G194: 360 941.45 | I194: 0.00
A195: 190 | B195: г. Бежецк, Нечаева ул., д. 2/7 | C195: СМР | D195: 2. Ремонт крыши | E195: 3 574 610.34 | F195: 3 574 610.34 | G195: 3 574 610.34 | I195: 0.00
A196: 191 | B196: г. Бежецк, Нечаева ул., д. 23 | C196: СМР | D196: 2. Ремонт крыши | E196: 3 734 269.63 | F196: 3 823 112.21 | G196: 3 823 112.21 | I196: 0.00
A197: 192 | B197: г. Бежецк, Нечаева ул., д. 23 | C197: ПСД | D197: 2. Ремонт крыши | E197: 298 742 | F197: 63 544.55 | G197: 63 544.55 | I197: 0.00
A198: 193 | B198: г. Бежецк, Нечаева ул., д. 23 | C198: СК | D198: 2. Ремонт крыши | E198: 79 913.37 | F198: 41 006.92 | G198: 41 006.92 | I198: 0.00
A199: 194 | B199: г. Бежецк, Нечаева ул., д. 27а | C199: СК | D199: 2. Ремонт крыши | E199: 52 492.14 | F199: 5,165.00 | G199: 5,165.00 | I199: 0.00
A200: 195 | B200: г. Бежецк, Нечаева ул., д. 27а | C200: ПСД | D200: 2. Ремонт крыши | E200: 196 232.31 | F200: 144 720. | G200: 144 720. | I200: 0.00
A201: 196 | B201: г. Бежецк, Нечаева ул., д. 27а | C201: СМР | D201: 2. Ремонт крыши | E201: 2 452 903.89 | F201: 2 043 816.97 | G201: 2 043 816.97 | I201: 0.00
... 9077 more rows
